[Event "FIDE World Cup 2013"]
[Site "TromsÃ¸"]
[Date "2013.08.13"]
[Round "1.4"]
[White "Ushenina, Anna"]
[Black "Svidler, Peter"]
[Result "0-1"]
[ECO "A77"]
[WhiteElo "2500"]
[BlackElo "2746"]
[PlyCount "80"]
[EventDate "2013.??.??"]
[EventCountry "NOR"]
[TimeControl "1500+10"]

1. d4 {[%emt 0:00:00]} g6 {[%emt 0:00:00]} 2. Nf3 {[%emt 0:00:00]} Bg7 {[%emt
0:00:00]} 3. c4 {[%emt 0:00:02]} d6 {[%emt 0:01:13]} 4. Nc3 {[%emt 0:00:09]}
Nf6 {[%emt 0:00:05]} 5. e4 {[%emt 0:00:02]} O-O {[%emt 0:00:03]} 6. Be2 {[%emt
0:00:01]} c5 {[%emt 0:02:05]} 7. d5 {[%emt 0:00:24]} e6 {[%emt 0:00:04]} 8. O-O
{[%emt 0:00:07]} exd5 {[%emt 0:00:01]} 9. cxd5 {[%emt 0:00:02]} Re8 {[%emt 0:
00:02]} 10. Nd2 {[%emt 0:00:02]} b6 {[%emt 0:01:02]} 11. f3 {[%emt 0:00:08]}
Ba6 {[%emt 0:00:05]} 12. Bxa6 {[%emt 0:00:39]} Nxa6 {[%emt 0:00:02]} 13. Nc4 {
[%emt 0:00:04]} Nc7 {[%emt 0:00:33]} 14. Bf4 {[%emt 0:00:26]} Bf8 {[%emt 0:00:
03]} 15. a4 {[%emt 0:00:13]} Nh5 {[%emt 0:00:17]} 16. Be3 {[%emt 0:00:44]} Rb8
{[%emt 0:02:01]} 17. g4 {[%emt 0:00:57]} Nf6 {[%emt 0:00:02]} 18. Bf4 {[%emt 0:
00:04]} h5 {[%emt 0:00:20]} 19. h3 {[%emt 0:00:17]} a6 {[%emt 0:00:06]} 20. Qd2
{[%emt 0:00:15]} b5 {[%emt 0:00:14]} 21. axb5 {[%emt 0:00:11]} axb5 {[%emt 0:
00:01]} 22. Na5 {[%emt 0:00:02]} Qd7 {[%emt 0:00:06]} 23. Nc6 {[%emt 0:00:12]}
Ra8 {[%emt 0:00:01]} 24. b4 {[%emt 0:00:22]} cxb4 {[%emt 0:02:59]} 25. Nxb4 {
[%emt 0:00:23]} Bg7 {[%emt 0:00:48]} 26. Rac1 {[%emt 0:03:43]} hxg4 {[%emt 0:
01:15]} 27. hxg4 {[%emt 0:00:03]} Ra3 {[%emt 0:00:29]} 28. Rf2 {[%emt 0:00:47]}
Rb3 {[%emt 0:00:44]} 29. Nc6 {[%emt 0:00:55]} b4 {[%emt 0:04:53]} 30. Ne2 {
[%emt 0:00:27]} Rxf3 {[%emt 0:01:47]} 31. Rxf3 {[%emt 0:00:18]} Nxe4 {[%emt 0:
00:06]} 32. Qd3 {[%emt 0:01:15]} Qxg4+ {[%emt 0:00:07]} 33. Ng3 {[%emt 0:04:03]
} Nxd5 {[%emt 0:02:48]} 34. Bxd6 {[%emt 0:01:51]} Ng5 {[%emt 0:00:57]} 35. Rxf7
{[%emt 0:04:38]} Nxf7 {[%emt 0:00:03]} 36. Qxd5 {[%emt 0:00:03]} Re6 {[%emt 0:
01:14]} 37. Bb8 {[%emt 0:01:59]} Ng5 {[%emt 0:01:41]} 38. Rf1 {[%emt 0:00:46]}
Kh7 {[%emt 0:00:14]} 39. Qh1+ {[%emt 0:01:43]} Nh3+ {[%emt 0:00:12]} 40. Kg2 {
[%emt 0:01:10]} Re2+ {[%emt 0:00:06]} 0-1

[Event "FIDE World Cup 2013"]
[Site "TromsÃ¸"]
[Date "2013.08.13"]
[Round "1.4"]
[White "Wojtaszek, Radoslaw"]
[Black "Fier, Alexandr"]
[Result "1/2-1/2"]
[ECO "D02"]
[WhiteElo "2701"]
[BlackElo "2595"]
[PlyCount "76"]
[EventDate "2013.??.??"]
[EventCountry "NOR"]
[TimeControl "1500+10"]

1. d4 {[%emt 0:00:00]} d5 {[%emt 0:00:00]} 2. Nf3 {[%emt 0:00:00]} e6 {[%emt 0:
00:00]} 3. c4 {[%emt 0:00:00]} c6 {[%emt 0:00:00]} 4. e3 {[%emt 0:00:00]} f5 {
[%emt 0:00:00]} 5. Bd3 {[%emt 0:01:28]} Nf6 {[%emt 0:00:00]} 6. Nc3 {[%emt 0:
00:06]} Bd6 {[%emt 0:00:00]} 7. Bd2 {[%emt 0:00:02]} O-O {[%emt 0:00:04]} 8.
O-O {[%emt 0:00:02]} Ne4 {[%emt 0:00:31]} 9. Rc1 {[%emt 0:01:30]} Nd7 {[%emt 0:
00:01]} 10. Be1 {[%emt 0:00:47]} Rf6 {[%emt 0:01:12]} 11. g3 {[%emt 0:01:11]}
Rh6 {[%emt 0:00:33]} 12. Nd2 {[%emt 0:00:33]} Ndf6 {[%emt 0:00:32]} 13. f3 {
[%emt 0:00:19]} Nxc3 {[%emt 0:01:32]} 14. bxc3 {[%emt 0:00:23]} g5 {[%emt 0:00:
49]} 15. e4 {[%emt 0:01:02]} fxe4 {[%emt 0:00:01]} 16. fxe4 {[%emt 0:00:04]} e5
{[%emt 0:00:02]} 17. cxd5 {[%emt 0:02:56]} cxd5 {[%emt 0:00:14]} 18. Nf3 {
[%emt 0:00:32]} Nxe4 {[%emt 0:02:45]} 19. Qb3 {[%emt 0:03:08]} Be6 {[%emt 0:00:
01]} 20. dxe5 {[%emt 0:00:47]} Bc5+ {[%emt 0:00:19]} 21. Nd4 {[%emt 0:00:02]}
Qb6 {[%emt 0:01:34]} 22. Qa4 {[%emt 0:02:33]} Qc7 {[%emt 0:02:15]} 23. Rb1 {
[%emt 0:01:36]} b6 {[%emt 0:01:24]} 24. Kh1 {[%emt 0:03:16]} Qxe5 {[%emt 0:01:
19]} 25. Nxe6 {[%emt 0:00:05]} Qxe6 {[%emt 0:00:15]} 26. Rb2 {[%emt 0:00:43]}
Rf8 {[%emt 0:03:53]} 27. Rxf8+ {[%emt 0:00:02]} Bxf8 {[%emt 0:00:01]} 28. Re2 {
[%emt 0:01:56]} Qf5 {[%emt 0:00:20]} 29. Rg2 {[%emt 0:00:59]} Qf3 {[%emt 0:02:
20]} 30. Qc2 {[%emt 0:00:34]} Bc5 {[%emt 0:00:34]} 31. Be2 {[%emt 0:00:20]} Qf5
{[%emt 0:01:08]} 32. Qd3 {[%emt 0:00:33]} Rf6 {[%emt 0:00:15]} 33. Qb5 {[%emt
0:00:22]} Nd6 {[%emt 0:00:14]} 34. Qd3 {[%emt 0:00:10]} Ne4 {[%emt 0:00:01]}
35. g4 {[%emt 0:00:22]} Nf2+ {[%emt 0:00:23]} 36. Bxf2 {[%emt 0:00:15]} Qxd3 {
[%emt 0:00:01]} 37. Bxd3 {[%emt 0:00:02]} Rxf2 {[%emt 0:00:01]} 38. Rxf2 {
[%emt 0:00:03]} Bxf2 {[%emt 0:00:02]} 1/2-1/2

[Event "FIDE World Cup 2013"]
[Site "TromsÃ¸"]
[Date "2013.08.13"]
[Round "1.5"]
[White "Adhiban, B."]
[Black "Alekseev, Evgeny"]
[Result "1/2-1/2"]
[ECO "E11"]
[WhiteElo "2567"]
[BlackElo "2714"]
[PlyCount "41"]
[EventDate "2013.??.??"]
[EventCountry "NOR"]
[TimeControl "600+10"]

1. d4 {[%emt 0:00:00]} Nf6 {[%emt 0:00:00]} 2. c4 {[%emt 0:00:00]} e6 {[%emt 0:
00:00]} 3. Nf3 {[%emt 0:00:00]} Bb4+ {[%emt 0:00:00]} 4. Nbd2 {[%emt 0:00:00]}
O-O {[%emt 0:00:00]} 5. a3 {[%emt 0:00:00]} Be7 {[%emt 0:00:08]} 6. e4 {[%emt
0:00:00]} d6 {[%emt 0:00:02]} 7. Bd3 {[%emt 0:00:10]} Nbd7 {[%emt 0:01:07]} 8.
Qe2 {[%emt 0:00:12]} e5 {[%emt 0:00:07]} 9. d5 {[%emt 0:00:01]} Nh5 {[%emt 0:
01:16]} 10. g3 {[%emt 0:00:18]} g6 {[%emt 0:00:05]} 11. Bc2 {[%emt 0:01:02]}
Ndf6 {[%emt 0:00:20]} 12. b4 {[%emt 0:00:29]} Bh3 {[%emt 0:00:31]} 13. Bb2 {
[%emt 0:00:09]} a5 {[%emt 0:00:11]} 14. Rb1 {[%emt 0:01:30]} axb4 {[%emt 0:00:
02]} 15. axb4 {[%emt 0:00:00]} c6 {[%emt 0:01:24]} 16. Ng5 {[%emt 0:01:16]} Bg4
{[%emt 0:00:12]} 17. Ngf3 {[%emt 0:00:01]} cxd5 {[%emt 0:00:14]} 18. cxd5 {
[%emt 0:00:01]} Bh3 {[%emt 0:00:17]} 19. Ng5 {[%emt 0:00:07]} Bg4 {[%emt 0:00:
13]} 20. Ngf3 {[%emt 0:00:01]} Bh3 {[%emt 0:00:12]} 21. Ng5 {[%emt 0:00:02]}
1/2-1/2

[Event "FIDE World Cup 2013"]
[Site "TromsÃ¸"]
[Date "2013.08.13"]
[Round "1.5"]
[White "Hracek, Zbynek"]
[Black "Bologan, Viktor"]
[Result "1/2-1/2"]
[ECO "A81"]
[WhiteElo "2635"]
[BlackElo "2672"]
[PlyCount "66"]
[EventDate "2013.??.??"]
[EventCountry "NOR"]
[TimeControl "600+10"]

1. d4 {[%emt 0:00:00]} f5 {[%emt 0:00:00]} 2. g3 {[%emt 0:00:00]} Nf6 {[%emt 0:
00:00]} 3. Bg2 {[%emt 0:00:00]} g6 {[%emt 0:00:00]} 4. Nf3 {[%emt 0:00:00]} Bg7
{[%emt 0:00:00]} 5. O-O {[%emt 0:00:00]} O-O {[%emt 0:00:00]} 6. b3 {[%emt 0:
00:00]} d6 {[%emt 0:00:00]} 7. Bb2 {[%emt 0:00:00]} Qe8 {[%emt 0:00:00]} 8. c4
{[%emt 0:00:03]} Na6 {[%emt 0:00:10]} 9. Nbd2 {[%emt 0:00:13]} Rb8 {[%emt 0:00:
26]} 10. Qc2 {[%emt 0:00:18]} c5 {[%emt 0:00:13]} 11. Rad1 {[%emt 0:00:31]} Bd7
{[%emt 0:00:14]} 12. Rfe1 {[%emt 0:00:20]} b5 {[%emt 0:00:35]} 13. cxb5 {[%emt
0:02:02]} Bxb5 {[%emt 0:00:37]} 14. a4 {[%emt 0:00:15]} Nb4 {[%emt 0:00:25]}
15. Qc1 {[%emt 0:00:02]} Ba6 {[%emt 0:00:28]} 16. dxc5 {[%emt 0:00:03]} Rc8 {
[%emt 0:00:02]} 17. Qc3 {[%emt 0:01:25]} dxc5 {[%emt 0:00:51]} 18. Nc4 {[%emt
0:00:14]} Bb7 {[%emt 0:01:46]} 19. Na5 {[%emt 0:00:47]} Bd5 {[%emt 0:00:19]}
20. Ng5 {[%emt 0:00:25]} e6 {[%emt 0:00:09]} 21. e4 {[%emt 0:01:22]} fxe4 {
[%emt 0:00:43]} 22. Bxe4 {[%emt 0:00:05]} Nh5 {[%emt 0:04:46]} 23. Qc1 {[%emt
0:00:36]} Qd7 {[%emt 0:01:07]} 24. Nxe6 {[%emt 0:00:26]} Bxb2 {[%emt 0:00:25]}
25. Nxf8 {[%emt 0:01:16]} Rxf8 {[%emt 0:00:02]} 26. Qxb2 {[%emt 0:00:14]} Nf4 {
[%emt 0:00:06]} 27. Bxd5+ {[%emt 0:00:23]} Nbxd5 {[%emt 0:00:05]} 28. Rxd5 {
[%emt 0:01:21]} Nh3+ {[%emt 0:00:45]} 29. Kg2 {[%emt 0:00:01]} Qxd5+ {[%emt 0:
00:01]} 30. Kxh3 {[%emt 0:00:28]} Rf5 {[%emt 0:00:02]} 31. Qc2 {[%emt 0:01:22]}
Rh5+ {[%emt 0:00:03]} 32. Kg4 {[%emt 0:00:01]} Rg5+ {[%emt 0:00:18]} 33. Kh3 {
[%emt 0:00:04]} Rh5+ {[%emt 0:00:24]} 1/2-1/2

[Event "FIDE World Cup 2013"]
[Site "TromsÃ¸"]
[Date "2013.08.13"]
[Round "1.5"]
[White "Jones, Gawain C B"]
[Black "Shimanov, Aleksandr"]
[Result "1/2-1/2"]
[ECO "C07"]
[WhiteElo "2643"]
[BlackElo "2664"]
[PlyCount "123"]
[EventDate "2013.??.??"]
[EventCountry "NOR"]
[TimeControl "600+10"]

1. e4 {[%emt 0:00:00]} e6 {[%emt 0:00:00]} 2. d4 {[%emt 0:00:00]} d5 {[%emt 0:
00:00]} 3. Nd2 {[%emt 0:00:00]} c5 {[%emt 0:00:00]} 4. Ngf3 {[%emt 0:00:00]}
cxd4 {[%emt 0:00:00]} 5. exd5 {[%emt 0:00:00]} Qxd5 {[%emt 0:00:00]} 6. Bc4 {
[%emt 0:00:00]} Qd7 {[%emt 0:00:00]} 7. O-O {[%emt 0:00:07]} Nc6 {[%emt 0:00:
00]} 8. Nb3 {[%emt 0:00:13]} Nf6 {[%emt 0:00:02]} 9. Qe2 {[%emt 0:00:16]} a6 {
[%emt 0:00:01]} 10. a4 {[%emt 0:00:01]} Bd6 {[%emt 0:00:15]} 11. Rd1 {[%emt 0:
00:07]} e5 {[%emt 0:00:04]} 12. Nbxd4 {[%emt 0:00:09]} Nxd4 {[%emt 0:00:05]}
13. Rxd4 {[%emt 0:00:07]} Qe7 {[%emt 0:00:43]} 14. Rxd6 {[%emt 0:00:04]} Qxd6 {
[%emt 0:00:08]} 15. b3 {[%emt 0:00:02]} e4 {[%emt 0:02:53]} 16. Ba3 {[%emt 0:
00:06]} Qf4 {[%emt 0:00:42]} 17. Re1 {[%emt 0:00:53]} Bg4 {[%emt 0:01:22]} 18.
h3 {[%emt 0:03:27]} Bxf3 {[%emt 0:00:25]} 19. Qxf3 {[%emt 0:01:29]} Qxf3 {
[%emt 0:02:34]} 20. gxf3 {[%emt 0:00:01]} O-O-O {[%emt 0:00:12]} 21. fxe4 {
[%emt 0:00:02]} Rd7 {[%emt 0:00:10]} 22. f4 {[%emt 0:02:06]} Re8 {[%emt 0:00:
33]} 23. e5 {[%emt 0:00:05]} g6 {[%emt 0:00:21]} 24. Bd3 {[%emt 0:01:54]} Nd5 {
[%emt 0:00:21]} 25. Re4 {[%emt 0:00:05]} f6 {[%emt 0:01:11]} 26. e6 {[%emt 0:
00:53]} Rc7 {[%emt 0:00:08]} 27. f5 {[%emt 0:01:35]} gxf5 {[%emt 0:00:17]} 28.
Rd4 {[%emt 0:00:06]} Ne7 {[%emt 0:00:57]} 29. Rh4 {[%emt 0:00:31]} Ng6 {[%emt
0:00:17]} 30. Rd4 {[%emt 0:00:20]} Ne7 {[%emt 0:00:23]} 31. Rh4 {[%emt 0:00:01]
} Ng6 {[%emt 0:00:37]} 32. Rh6 {[%emt 0:00:01]} Nf4 {[%emt 0:00:23]} 33. Bxf5 {
[%emt 0:00:07]} Nxe6 {[%emt 0:00:12]} 34. Rxf6 {[%emt 0:00:04]} Rc6 {[%emt 0:
00:00]} 35. Bxh7 {[%emt 0:00:20]} Nd4 {[%emt 0:00:17]} 36. Rxc6+ {[%emt 0:00:
04]} Nxc6 {[%emt 0:00:01]} 37. Bb2 {[%emt 0:00:15]} Kc7 {[%emt 0:00:21]} 38. h4
{[%emt 0:00:06]} Re6 {[%emt 0:00:09]} 39. h5 {[%emt 0:00:21]} Rh6 {[%emt 0:00:
13]} 40. Bg6 {[%emt 0:00:01]} Ne7 {[%emt 0:00:02]} 41. Bg7 {[%emt 0:00:10]}
Rxg6+ {[%emt 0:00:01]} 42. hxg6 {[%emt 0:00:01]} Nxg6 {[%emt 0:00:01]} 43. Kf2
{[%emt 0:00:02]} b5 {[%emt 0:00:10]} 44. a5 {[%emt 0:00:24]} Kc6 {[%emt 0:00:
03]} 45. Ke3 {[%emt 0:00:31]} Ne7 {[%emt 0:00:02]} 46. Ke4 {[%emt 0:00:07]} Nd5
{[%emt 0:00:17]} 47. Bf8 {[%emt 0:00:03]} Nc3+ {[%emt 0:00:07]} 48. Ke5 {[%emt
0:00:06]} Nd5 {[%emt 0:00:06]} 49. Kd4 {[%emt 0:00:13]} Nc7 {[%emt 0:00:02]}
50. Bh6 {[%emt 0:00:06]} Ne6+ {[%emt 0:00:04]} 51. Ke5 {[%emt 0:00:01]} Nc5 {
[%emt 0:00:05]} 52. Be3 {[%emt 0:00:03]} Nb7 {[%emt 0:00:07]} 53. Bd2 {[%emt 0:
00:05]} Kc5 {[%emt 0:00:25]} 54. Be3+ {[%emt 0:00:47]} Kc6 {[%emt 0:00:08]} 55.
Bb6 {[%emt 0:00:05]} b4 {[%emt 0:00:10]} 56. Kd4 {[%emt 0:00:09]} Nd6 {[%emt 0:
00:23]} 57. Bc5 {[%emt 0:00:08]} Nb5+ {[%emt 0:00:10]} 58. Kc4 {[%emt 0:00:01]}
Na3+ {[%emt 0:00:01]} 59. Kxb4 {[%emt 0:00:01]} Nxc2+ {[%emt 0:00:01]} 60. Kc4
{[%emt 0:00:01]} Na1 {[%emt 0:00:25]} 61. Bd4 {[%emt 0:00:05]} Nxb3 {[%emt 0:
00:07]} 62. Kxb3 {[%emt 0:00:04]} 1/2-1/2

[Event "FIDE World Cup 2013"]
[Site "TromsÃ¸"]
[Date "2013.08.13"]
[Round "1.5"]
[White "Leitao, Rafael"]
[Black "Inarkiev, Ernesto"]
[Result "1/2-1/2"]
[ECO "D11"]
[WhiteElo "2632"]
[BlackElo "2680"]
[PlyCount "53"]
[EventDate "2013.??.??"]
[EventCountry "NOR"]
[TimeControl "600+10"]

1. d4 {[%emt 0:00:00]} d5 {[%emt 0:00:00]} 2. c4 {[%emt 0:00:00]} c6 {[%emt 0:
00:00]} 3. Nf3 {[%emt 0:00:00]} Nf6 {[%emt 0:00:00]} 4. e3 {[%emt 0:00:00]} a6
{[%emt 0:00:00]} 5. Bd2 {[%emt 0:00:00]} g6 {[%emt 0:00:00]} 6. Nc3 {[%emt 0:
00:04]} Bg7 {[%emt 0:00:00]} 7. Be2 {[%emt 0:00:03]} O-O {[%emt 0:00:00]} 8.
O-O {[%emt 0:00:03]} b5 {[%emt 0:00:00]} 9. cxd5 {[%emt 0:00:19]} cxd5 {[%emt
0:00:00]} 10. b4 {[%emt 0:00:07]} Nc6 {[%emt 0:02:23]} 11. a4 {[%emt 0:00:13]}
bxa4 {[%emt 0:00:02]} 12. Nxa4 {[%emt 0:02:30]} Rb8 {[%emt 0:00:56]} 13. Rb1 {
[%emt 0:01:25]} Ne4 {[%emt 0:01:00]} 14. Nc5 {[%emt 0:00:15]} e5 {[%emt 0:01:
43]} 15. dxe5 {[%emt 0:00:29]} Nxe5 {[%emt 0:00:17]} 16. Nd4 {[%emt 0:01:30]}
Qb6 {[%emt 0:00:22]} 17. Nxe4 {[%emt 0:00:31]} dxe4 {[%emt 0:00:03]} 18. b5 {
[%emt 0:00:11]} Qf6 {[%emt 0:01:35]} 19. Qc2 {[%emt 0:01:20]} axb5 {[%emt 0:00:
51]} 20. Rxb5 {[%emt 0:01:33]} Rxb5 {[%emt 0:01:07]} 21. Bxb5 {[%emt 0:00:20]}
Bf5 {[%emt 0:01:03]} 22. Nxf5 {[%emt 0:00:30]} Qxf5 {[%emt 0:00:08]} 23. Be2 {
[%emt 0:00:20]} Rc8 {[%emt 0:00:06]} 24. Qb1 {[%emt 0:00:09]} h5 {[%emt 0:00:
15]} 25. Rc1 {[%emt 0:00:09]} Rxc1+ {[%emt 0:00:43]} 26. Qxc1 {[%emt 0:00:05]}
Ng4 {[%emt 0:00:07]} 27. Bxg4 {[%emt 0:00:17]} 1/2-1/2

[Event "FIDE World Cup 2013"]
[Site "TromsÃ¸"]
[Date "2013.08.13"]
[Round "1.5"]
[White "Lou, Yiping"]
[Black "Kamsky, Gata"]
[Result "0-1"]
[ECO "E21"]
[WhiteElo "2483"]
[BlackElo "2763"]
[PlyCount "88"]
[EventDate "2013.??.??"]
[EventCountry "NOR"]
[TimeControl "600+10"]

1. d4 {[%emt 0:00:00]} Nf6 {[%emt 0:00:00]} 2. c4 {[%emt 0:00:00]} e6 {[%emt 0:
00:00]} 3. Nc3 {[%emt 0:00:00]} Bb4 {[%emt 0:00:00]} 4. Nf3 {[%emt 0:00:00]} b6
{[%emt 0:00:01]} 5. e3 {[%emt 0:00:03]} Bb7 {[%emt 0:00:22]} 6. Bd3 {[%emt 0:
00:02]} O-O {[%emt 0:00:08]} 7. O-O {[%emt 0:00:03]} c5 {[%emt 0:00:03]} 8. Na4
{[%emt 0:00:13]} cxd4 {[%emt 0:00:40]} 9. exd4 {[%emt 0:00:02]} Be7 {[%emt 0:
00:11]} 10. Bf4 {[%emt 0:00:09]} d6 {[%emt 0:00:58]} 11. Qe2 {[%emt 0:00:35]}
Nbd7 {[%emt 0:00:11]} 12. Rfe1 {[%emt 0:00:31]} Re8 {[%emt 0:00:03]} 13. Rac1 {
[%emt 0:00:28]} Bf8 {[%emt 0:00:08]} 14. Bb1 {[%emt 0:00:41]} g6 {[%emt 0:00:
08]} 15. h3 {[%emt 0:00:07]} Rc8 {[%emt 0:00:05]} 16. Bg5 {[%emt 0:00:35]} Qc7
{[%emt 0:00:18]} 17. b4 {[%emt 0:00:21]} Qb8 {[%emt 0:00:39]} 18. a3 {[%emt 0:
00:58]} Qa8 {[%emt 0:00:13]} 19. Red1 {[%emt 0:00:57]} h6 {[%emt 0:00:50]} 20.
Be3 {[%emt 0:00:23]} a6 {[%emt 0:00:41]} 21. Nb2 {[%emt 0:00:21]} e5 {[%emt 0:
00:38]} 22. dxe5 {[%emt 0:00:11]} dxe5 {[%emt 0:01:04]} 23. Ne1 {[%emt 0:00:35]
} a5 {[%emt 0:00:03]} 24. Bd2 {[%emt 0:01:20]} e4 {[%emt 0:00:33]} 25. Qe3 {
[%emt 0:00:30]} axb4 {[%emt 0:00:50]} 26. axb4 {[%emt 0:00:01]} Qb8 {[%emt 0:
01:42]} 27. Bc3 {[%emt 0:00:31]} Ba8 {[%emt 0:01:17]} 28. Ba2 {[%emt 0:00:17]}
Ne5 {[%emt 0:00:05]} 29. Bd4 {[%emt 0:01:00]} Bxb4 {[%emt 0:00:16]} 30. Qxh6 {
[%emt 0:00:11]} Bc5 {[%emt 0:00:31]} 31. Nc2 {[%emt 0:00:18]} Rcd8 {[%emt 0:00:
23]} 32. Qg5 {[%emt 0:00:57]} Nh7 {[%emt 0:00:07]} 33. Qg3 {[%emt 0:00:32]} Nf8
{[%emt 0:00:39]} 34. Qc3 {[%emt 0:00:09]} Nc6 {[%emt 0:00:50]} 35. Na4 {[%emt
0:00:54]} Nxd4 {[%emt 0:00:06]} 36. Nxd4 {[%emt 0:00:01]} e3 {[%emt 0:00:07]}
37. Nxc5 {[%emt 0:00:33]} bxc5 {[%emt 0:00:08]} 38. Ne2 {[%emt 0:00:20]} Rxd1+
{[%emt 0:00:13]} 39. Rxd1 {[%emt 0:00:01]} exf2+ {[%emt 0:00:02]} 40. Kxf2 {
[%emt 0:00:02]} Qh2 {[%emt 0:00:05]} 41. Rd5 {[%emt 0:00:16]} Bxd5 {[%emt 0:00:
11]} 42. cxd5 {[%emt 0:00:02]} Qd6 {[%emt 0:00:18]} 43. Qf3 {[%emt 0:00:19]}
Nd7 {[%emt 0:00:05]} 44. Nc3 {[%emt 0:00:06]} Qf6 {[%emt 0:00:14]} 0-1

[Event "FIDE World Cup 2013"]
[Site "TromsÃ¸"]
[Date "2013.08.13"]
[Round "1.5"]
[White "Melkumyan, Hrant"]
[Black "Granda Zuniga, Julio E"]
[Result "1-0"]
[ECO "E18"]
[WhiteElo "2632"]
[BlackElo "2679"]
[PlyCount "93"]
[EventDate "2013.??.??"]
[EventCountry "NOR"]
[TimeControl "600+10"]

1. d4 {[%emt 0:00:00]} Nf6 {[%emt 0:00:00]} 2. c4 {[%emt 0:00:00]} e6 {[%emt 0:
00:00]} 3. Nf3 {[%emt 0:00:00]} b6 {[%emt 0:00:00]} 4. g3 {[%emt 0:00:00]} Bb7
{[%emt 0:00:00]} 5. Bg2 {[%emt 0:00:00]} Be7 {[%emt 0:00:00]} 6. O-O {[%emt 0:
00:00]} O-O {[%emt 0:00:00]} 7. Nc3 {[%emt 0:00:00]} Ne4 {[%emt 0:00:05]} 8.
Bd2 {[%emt 0:00:02]} Bf6 {[%emt 0:00:28]} 9. Ne5 {[%emt 0:00:01]} Nxc3 {[%emt
0:00:11]} 10. Bxc3 {[%emt 0:00:01]} Bxg2 {[%emt 0:00:22]} 11. Kxg2 {[%emt 0:00:
02]} g6 {[%emt 0:03:26]} 12. e4 {[%emt 0:01:18]} Bg7 {[%emt 0:00:05]} 13. Nf3 {
[%emt 0:00:42]} d6 {[%emt 0:00:10]} 14. Rc1 {[%emt 0:00:31]} Nd7 {[%emt 0:00:
19]} 15. h4 {[%emt 0:00:26]} Qe7 {[%emt 0:00:22]} 16. h5 {[%emt 0:00:37]} Nf6 {
[%emt 0:02:29]} 17. hxg6 {[%emt 0:00:02]} Nxe4 {[%emt 0:00:06]} 18. gxh7+ {
[%emt 0:00:13]} Kh8 {[%emt 0:00:01]} 19. Qe2 {[%emt 0:01:19]} f5 {[%emt 0:00:
09]} 20. Rh1 {[%emt 0:00:12]} Rf6 {[%emt 0:00:25]} 21. Nh4 {[%emt 0:00:23]}
Raf8 {[%emt 0:02:02]} 22. Qh5 {[%emt 0:00:28]} Qf7 {[%emt 0:00:11]} 23. Qxf7 {
[%emt 0:00:03]} R8xf7 {[%emt 0:00:03]} 24. d5 {[%emt 0:00:56]} e5 {[%emt 0:00:
17]} 25. Be1 {[%emt 0:00:38]} Bh6 {[%emt 0:00:27]} 26. Rc2 {[%emt 0:00:24]}
Rxh7 {[%emt 0:00:04]} 27. f3 {[%emt 0:00:13]} Nc5 {[%emt 0:00:05]} 28. b4 {
[%emt 0:00:41]} Nd7 {[%emt 0:01:03]} 29. Rc3 {[%emt 0:01:20]} a6 {[%emt 0:00:
51]} 30. Ra3 {[%emt 0:00:01]} b5 {[%emt 0:00:01]} 31. cxb5 {[%emt 0:00:24]}
axb5 {[%emt 0:00:01]} 32. Ra8+ {[%emt 0:00:12]} Bf8 {[%emt 0:00:17]} 33. Bf2 {
[%emt 0:00:27]} Kg8 {[%emt 0:00:04]} 34. Rc1 {[%emt 0:00:10]} f4 {[%emt 0:00:
45]} 35. g4 {[%emt 0:00:25]} e4 {[%emt 0:00:44]} 36. Rxc7 {[%emt 0:00:16]} e3 {
[%emt 0:00:06]} 37. Be1 {[%emt 0:00:02]} Nb6 {[%emt 0:00:03]} 38. Rxh7 {[%emt
0:00:15]} Kxh7 {[%emt 0:00:01]} 39. Re8 {[%emt 0:00:26]} Rf7 {[%emt 0:00:14]}
40. g5 {[%emt 0:00:08]} Kg8 {[%emt 0:00:02]} 41. g6 {[%emt 0:00:14]} Re7 {
[%emt 0:00:04]} 42. Rb8 {[%emt 0:00:06]} Nd7 {[%emt 0:00:09]} 43. Rd8 {[%emt 0:
00:12]} Ne5 {[%emt 0:00:27]} 44. Nf5 {[%emt 0:00:07]} Rd7 {[%emt 0:00:01]} 45.
Rxd7 {[%emt 0:00:13]} Nxd7 {[%emt 0:00:01]} 46. Bc3 {[%emt 0:00:01]} Ne5 {
[%emt 0:00:05]} 47. Bxe5 {[%emt 0:00:06]} 1-0

[Event "FIDE World Cup 2013"]
[Site "TromsÃ¸"]
[Date "2013.08.13"]
[Round "1.5"]
[White "Negi, Parimarjan"]
[Black "Kryvoruchko, Yuriy"]
[Result "0-1"]
[ECO "B33"]
[WhiteElo "2634"]
[BlackElo "2678"]
[PlyCount "52"]
[EventDate "2013.??.??"]
[EventCountry "NOR"]
[TimeControl "600+10"]

1. e4 {[%emt 0:00:00]} c5 {[%emt 0:00:00]} 2. Nf3 {[%emt 0:00:00]} Nc6 {[%emt
0:00:00]} 3. Nc3 {[%emt 0:00:00]} Nf6 {[%emt 0:00:00]} 4. d4 {[%emt 0:00:14]}
cxd4 {[%emt 0:00:00]} 5. Nxd4 {[%emt 0:00:00]} e5 {[%emt 0:00:00]} 6. Ndb5 {
[%emt 0:00:01]} d6 {[%emt 0:00:00]} 7. Bg5 {[%emt 0:00:03]} a6 {[%emt 0:00:00]}
8. Na3 {[%emt 0:00:10]} b5 {[%emt 0:00:00]} 9. Nd5 {[%emt 0:00:01]} Be7 {[%emt
0:00:00]} 10. Bxf6 {[%emt 0:00:03]} Bxf6 {[%emt 0:00:01]} 11. c4 {[%emt 0:00:
02]} b4 {[%emt 0:00:03]} 12. Nc2 {[%emt 0:00:01]} O-O {[%emt 0:00:01]} 13. Be2
{[%emt 0:00:01]} Bg5 {[%emt 0:00:03]} 14. Ncxb4 {[%emt 0:00:07]} Nxb4 {[%emt 0:
00:02]} 15. Nxb4 {[%emt 0:00:01]} Qb6 {[%emt 0:00:02]} 16. Nd5 {[%emt 0:00:02]}
Qxb2 {[%emt 0:00:02]} 17. O-O {[%emt 0:00:01]} Qa3 {[%emt 0:00:02]} 18. Rb1 {
[%emt 0:00:38]} Qc5 {[%emt 0:00:54]} 19. Bg4 {[%emt 0:00:27]} Be6 {[%emt 0:02:
34]} 20. Bxe6 {[%emt 0:00:32]} fxe6 {[%emt 0:00:01]} 21. Nb6 {[%emt 0:00:01]}
Ra7 {[%emt 0:02:14]} 22. Qg4 {[%emt 0:00:04]} Rb7 {[%emt 0:00:37]} 23. Qxe6+ {
[%emt 0:01:45]} Kh8 {[%emt 0:00:02]} 24. Qd5 {[%emt 0:00:17]} Rfb8 {[%emt 0:00:
20]} 25. h4 {[%emt 0:08:05]} Bxh4 {[%emt 0:00:04]} 26. g3 {[%emt 0:00:04]} Bf6
{[%emt 0:00:05]} 0-1